Workbook

Sheet －試算e
A1: 共済使用有無による参考用掛金差額（特約、割引反映無しの概算） ver.e | Q1: Design by Mhosotan
A3: 現在契約 | C3: 等級 | D3: 掛金 | F3: 事故有／係数 | H3: 優割／係数 | J3: 係数無し掛金 | L3: 次回6，7等級 | N3: 契約者
A4: 現在契約 | C4: 17 | D4: 35000 | F4: 0 | G4: =IFERROR(VLOOKUP(C4, $P$18:$S$47,IF(F4>0,4,2),0),"") -> -0.53 | H4: 0 | I4: =IF(H4=0,0,IF(H4=1,-0.02,IF(H4=2,-0.03,IF(H4=3,-0.04,IF(H4=4,-0.05,IF(H4=5,-0.06,0)))))) -> 0 | J4: =IFERROR(IF(D4=0,0,D4/(1+(G4+I4))),"") -> 74468.08511 | L4: F 継続契約 | N4: 農協 太郎
A6: 事故での等級ダウン数 | E6: 3 | F6: =IF(E6<=1,"(*^-^)ﾆｺ",IF(AND(E6>1,E6<=3),"(w＿－； ｳｩ･･","Σ(￣ロ￣lll) ｶﾞﾋﾞｰﾝ")) -> (w＿－； ｳｩ･･
A8: 年度 | C8: 共済使用 | J8: 共済使用せず | Q8: 掛金差額
C9: 等級 | D9: 事故有／係数 | F9: 優割／係数 | H9: 掛金 | J9: 等級 | K9: 事故有／係数 | M9: 優割／係数 | O9: 掛金 | Q9: 年差額 | S9: 累積差額
A10: 1年目 | C10: =IF(LEFT(C4,1)="7",7-E6,IF(LEFT(C4,1)="6",IF(E6=6,1,6-E6),IF(OR(E6=0,C4=0),C4,IF(C4-E6<1,1,C4-E6)))) -> 14 | D10: =IF(E6+F4>6,6,IF(F4=0,E6,F4+E6-1)) -> 3 | E10: =IF(OR(LEFT(C10,1)="7",(LEFT(C10,1)="6")),IFERROR(VLOOKUP(C10&LEFT($L$4,1), $P$18:$S$47,IF(D10>0,4,2),0),""),IFERROR(VLOOKUP(C10, $P$18:$S$47,IF(D10>0,4,2),0),"")) -> -0.31 | F10: 0 | G10: =IF(F10=0,0,IF(F10=1,-0.02,IF(F10=2,-0.03,IF(F10=3,-0.04,IF(F10=4,-0.05,IF(F10=5,-0.06,0)))))) -> 0 | H10: =IFERROR(IF($D$4=0,0,$J$4*(1+(E10+G10))),"") -> 51382.97872 | J10: =IF(LEFT(C4,1)="7",8,IF(LEFT(C4,1)="6",7,IF(OR(E6=0,C4=0),C4,IF(C4+1>=20,20,C4+1)))) -> 18 | K10: =IF(F4-1<=0,0,F4-1) -> 0 | L10: =IF(OR(LEFT(J10,1)="7",(LEFT(J10,1)="6")),IFERROR(VLOOKUP(J10&LEFT($L$4,1), $P$18:$S$47,IF(K10>0,4,2),0),""),IFERROR(VLOOKUP(J10, $P$18:$S$47,IF(K10>0,4,2),0),"")) -> -0.54 | M10: =IF(OR(F4>0,C4<>20),0,IF(H4=5,5,H4+1)) -> 0 | N10: =IF(M10=0,0,IF(M10=1,-0.02,IF(M10=2,-0.03,IF(M10=3,-0.04,IF(M10=4,-0.05,IF(M10=5,-0.06,0)))))) -> 0 | O10: =IFERROR(IF($D$4=0,0,$J$4*(1+(L10+N10))),"") -> 34255.31915 | Q10: =IFERROR(H10-O10,"") -> 17127.65957 | S10: =Q10 -> 17127.65957
A11: 2年目 | C11: =IF($C$10=0,"", IF(C10+1>=20,20,$C$10+1)) -> 15 | D11: =IF($D$10=0,0,IF(D10<=1,0,$D$10-1)) -> 2 | E11: =IF(OR(LEFT(C11,1)="7",(LEFT(C11,1)="6")),IFERROR(VLOOKUP(C11&LEFT($L$4,1), $P$18:$S$47,IF(D11>0,4,2),0),""),IFERROR(VLOOKUP(C11, $P$18:$S$47,IF(D11>0,4,2),0),"")) -> -0.33 | F11: =IF(OR(C10<20,D10>0),0,IF(C11=20,F10+1)) -> 0 | G11: =IF(F11=0,0,IF(F11=1,-0.02,IF(F11=2,-0.03,IF(F11=3,-0.04,IF(F11=4,-0.05,IF(F11=5,-0.06,0)))))) -> 0 | H11: =IFERROR(IF($D$4=0,0,$J$4*(1+(E11+G11))),"") -> 49893.61702 | J11: =IF($J$10=0,"", IF(J10+1>=20,20,$J$10+1)) -> 19 | K11: =IF($K$10=0,0,IF(K10<=1,0,$K$10-1)) -> 0 | L11: =IF(OR(LEFT(J11,1)="7",(LEFT(J11,1)="6")),IFERROR(VLOOKUP(J11&LEFT($L$4,1), $P$18:$S$47,IF(K11>0,4,2),0),""),IFERROR(VLOOKUP(J11, $P$18:$S$47,IF(K11>0,4,2),0),"")) -> -0.55 | M11: =IF(OR(K10>0,J10<20),0,IF($M$10>=5,5,IF(M10>=5,5,M10+1))) -> 0 | N11: =IF(M11=0,0,IF(M11=1,-0.02,IF(M11=2,-0.03,IF(M11=3,-0.04,IF(M11=4,-0.05,IF(M11=5,-0.06,0)))))) -> 0 | O11: =IFERROR(IF($D$4=0,0,$J$4*(1+(L11+N11))),"") -> 33510.6383 | Q11: =IFERROR(H11-O11,"") -> 16382.97872 | S11: =IFERROR(S10+Q11,"") -> 33510.6383
A12: 3年目 | C12: =IF($C$10=0,"", IF(C11+1>=20,20,$C$10+2)) -> 16 | D12: =IF($D$10=0,0,IF(D11<=1,0,$D$10-2)) -> 1 | E12: -0.36 | F12: =IF(OR(C11<20,D11>0),0,IF(C12=20,F11+1)) -> 0 | G12: 0 | H12: 47659.57447 | J12: =IF($J$10=0,"", IF(J11+1>=20,20,$J$10+2)) -> 20 | K12: =IF($K$10=0,0,IF(K11<=1,0,$K$10-2)) -> 0 | L12: -0.63 | M12: =IF(OR(K11>0,J11<20),0,IF($M$10>=5,5,IF(M11>=5,5,M11+1))) -> 0 | N12: 0 | O12: 27553.19149 | Q12: 20106.38298 | S12: =IFERROR(S11+Q12,"") -> 53617.02128
A13: 4年目 | C13: =IF($C$10=0,"", IF(C12+1>=20,20,$C$10+3)) -> 17 | D13: =IF($D$10=0,0,IF(D12<=1,0,$D$10-3)) -> 0 | E13: -0.53 | F13: 0 | G13: 0 | H13: 35000 | J13: =IF($J$10=0,"", IF(J12+1>=20,20,$J$10+3)) -> 20 | K13: =IF($K$10=0,0,IF(K12<=1,0,$K$10-3)) -> 0 | L13: -0.63 | M13: 1 | N13: -0.02 | O13: 26063.82979 | Q13: 8936.170213 | S13: 62553.19149
A14: 5年目 | C14: =IF($C$10=0,"", IF(C13+1>=20,20,$C$10+4)) -> 18 | D14: =IF($D$10=0,0,IF(D13<=1,0,$D$10-4)) -> 0 | E14: -0.54 | F14: 0 | G14: 0 | H14: 34255.31915 | J14: =IF($J$10=0,"", IF(J13+1>=20,20,$J$10+4)) -> 20 | K14: =IF($K$10=0,0,IF(K13<=1,0,$K$10-4)) -> 0 | L14: -0.63 | M14: 2 | N14: -0.03 | O14: 25319.14894 | Q14: 8936.170213 | S14: 71489.3617
A15: 6年目 | C15: =IF($C$10=0,"", IF(C14+1>=20,20,$C$10+5)) -> 19 | D15: =IF($D$10=0,0,IF(D14<=1,0,$D$10-5)) -> 0 | E15: -0.55 | F15: 0 | G15: 0 | H15: 33510.6383 | J15: =IF($J$10=0,"", IF(J14+1>=20,20,$J$10+5)) -> 20 | K15: =IF($K$10=0,0,IF(K14<=1,0,$K$10-5)) -> 0 | L15: -0.63 | M15: 3 | N15: -0.04 | O15: 24574.46809 | Q15: 8936.170213 | S15: 80425.53191
Q16: 約款 | S16: JID18A
A17: 等級別割増・割引率表 | P17: 等級 | Q17: 無事故係数 | S17: 事故有係数
A18: φ(..)メモメモ | P18: 20 | Q18: -0.63 | S18: -0.44
A19: 2年契約の試算 | P19: 19 | Q19: -0.55 | S19: -0.42
A20: ① 1事故の差額 2等級ダウンとし1年目の「共済使用」掛金から2等級アップの「共済使用せず」掛金を引く | P20: 18 | Q20: -0.54 | S20: -0.4
A21: ② 2事故の差額 5等級ダウンとし1年目の「共済使用」掛金から2等級アップの「共済使用せず」掛金を引く | P21: 17 | Q21: -0.53 | S21: -0.38
P22: 16 | Q22: -0.52 | S22: -0.36
P23: 15 | Q23: -0.51 | S23: -0.33
P24: 14 | Q24: -0.5 | S24: -0.31
P25: 13 | Q25: -0.49 | S25: -0.29
P26: 12 | Q26: -0.48 | S26: -0.27
P27: 11 | Q27: -0.47 | S27: -0.25
P28: 10 | Q28: -0.45 | S28: -0.23
P29: 9 | Q29: -0.43 | S29: -0.22
P30: 8 | Q30: -0.4 | S30: -0.21
A31: 複数台所有者優遇措置適用契約 | E31: 年齢を問わず保証 | P31: 7A | Q31: 0.11 | S31: 0.11
E32: 運転者年齢 21歳以上限定保証 | P32: 7B | Q32: -0.11 | S32: -0.11
E33: 運転者年齢 26歳以上限定保証 | P33: 7C | Q33: -0.4 | S33: -0.4
E34: 運転者年齢 35歳以上限定保証 | P34: 7G | Q34: -0.4 | S34: -0.4
E35: 運転者年齢条件を適用できない用途車種の契約 | P35: 7D | Q35: -0.39 | S35: -0.39
A36: 継続契約 | P36: 7F | Q36: -0.3 | S36: -0.2
A37: 前契約のない純粋新規契約 | E37: 年齢を問わず保証 | P37: 6A | Q37: 0.28 | S37: 0.28
E38: 運転者年齢 21歳以上限定保証 | P38: 6B | Q38: 0.03 | S38: 0.03
E39: 運転者年齢 26歳以上限定保証 | P39: 6C | Q39: -0.09 | S39: -0.09
E40: 運転者年齢 35歳以上限定保証 | P40: 6G | Q40: -0.09 | S40: -0.09
E41: 運転者年齢条件を適用できない用途車種の契約 | P41: 6D | Q41: 0 | S41: 0
A42: 継続契約 | P42: 6F | Q42: -0.19 | S42: -0.19
P43: 5 | Q43: 0.1 | S43: 0.1
P44: 4 | Q44: 0.35 | S44: 0.35
P45: 3 | Q45: 0.51 | S45: 0.51
P46: 2 | Q46: 0.62 | S46: 0.62
P47: 1 | Q47: 1.15 | S47: 1.15
